fUSD/lending_fUSD_20250521
["ID","MTS","AMOUNT","RATE_DAILY","PERIOD"]
[361814874,1747823520637,-2280.59,0.00034246,5]
[361814875,1747823520648,-379.03219086,0.00034246,5]
[361814876,1747823520658,-420.0,0.00034246,5]
[361814877,1747823520668,-420.0,0.00034246,5]
[361814878,1747823520679,-420.0,0.00034246,5]
[361814879,1747823520689,-420.0,0.00034246,5]
[361814880,1747823520700,-1660.08,0.00034246,5]
[361814881,1747823520710,-420.0,0.00034246,5]
[361814882,1747823520720,-891.37,0.00034246,5]
[361814883,1747823520731,-420.0,0.00034246,5]
[361814884,1747823520741,-2531.44,0.00034246,5]
[361814885,1747823520752,-1229.28,0.00034246,5]
[361814886,1747823520763,-420.0,0.00034246,5]
[361814887,1747823520773,-562.73,0.00034246,5]
[361814888,1747823520784,-420.0,0.00034246,5]
[361814889,1747823520795,-420.0,0.00034246,5]
[361814890,1747823520805,-1520.14,0.00034246,5]
[361814891,1747823520816,-420.0,0.00034246,5]
[361814892,1747823520827,-639.64,0.00034246,5]
[361814893,1747823520836,-420.0,0.00034246,5]
[361814894,1747823520846,-538.77048822,0.00034246,5]
[361814895,1747823520856,-2002.78,0.00034246,5]
[361814896,1747823520867,-420.0,0.00034246,5]
[361814897,1747823520876,-504.03,0.00034246,5]
[361814898,1747823520887,-420.0,0.00034246,5]
[361814899,1747823520897,-420.0,0.00034246,5]
[361814900,1747823520908,-756.35,0.00034246,5]
[361814901,1747823520918,-1155.6,0.00034246,5]
[361814902,1747823520930,-420.0,0.00034246,5]
[361814903,1747823520940,-420.0,0.00034246,5]
[361814904,1747823520950,-2487.3,0.00034246,5]
[361814905,1747823520960,-829.63,0.00034246,5]
[361814906,1747823520971,-440.4,0.00034246,5]
[361814907,1747823520981,-420.0,0.00034246,5]
[361814908,1747823520991,-420.0,0.00034246,5]
[361814909,1747823521001,-1069.06,0.00034246,5]
[361814910,1747823521012,-512.22,0.00034246,5]
[361814911,1747823521022,-1131.24,0.00034246,5]
[361814912,1747823521032,-3548.27,0.00034246,5]
[361814913,1747823521042,-420.0,0.00034246,5]
[361814914,1747823521051,-531.37,0.00034246,5]
[361814915,1747823521061,-420.0,0.00034246,5]
[361814916,1747823521071,-438.38,0.00034246,5]
[361814917,1747823521082,-420.0,0.00034246,5]
[361814918,1747823521092,-1167.92,0.00034246,5]
[361814919,1747823521102,-836.66,0.00034246,5]
[361814920,1747823521111,-1758.59,0.00034246,5]
[361814921,1747823521121,-2244.73,0.00034246,5]
[361814922,1747823521131,-500.0,0.00034246,5]
[361814923,1747823521140,-1671.68,0.00034246,5]
[361814924,1747823521151,-706.99,0.00034246,5]
[361814925,1747823521160,-1303.3,0.00034246,5]
[361814926,1747823521170,-630.7,0.00034246,5]
[361814927,1747823521180,-362.73105497,0.00034246,5]
[361814928,1747823521190,-420.0,0.00034246,5]
[361814929,1747823521200,-1546.03,0.00034246,5]
[361814930,1747823521211,-1449.1,0.00034246,5]
[361814931,1747823521220,-1084.11,0.00034246,5]
[361814932,1747823521231,-796.16,0.00034246,5]
[361814933,1747823521240,-829.47,0.00034246,5]
[361814934,1747823521251,-420.0,0.00034246,5]
[361814935,1747823521261,-560.22,0.00034246,5]
[361814936,1747823521271,-2061.87,0.00034246,5]
[361814937,1747823521281,-677.92,0.00034246,5]
[361814938,1747823521291,-1832.34,0.00034246,5]
[361814939,1747823521302,-1759.24,0.00034246,5]
[361814940,1747823521312,-420.0,0.00034246,5]
[361814941,1747823521322,-2008.9,0.00034246,5]
[361814942,1747823521332,-420.0,0.00034246,5]
[361814943,1747823521342,-603.25,0.00034246,5]
[361814944,1747823521352,-420.0,0.00034246,5]
[361814945,1747823521364,-3335.62,0.00034246,5]
[361814946,1747823521376,-794.93,0.00034246,5]
[361814947,1747823521387,-462.11,0.00034246,5]
[361814948,1747823521397,-1384.78,0.00034246,5]
[361814949,1747823521407,-3088.45,0.00034246,5]
[361814950,1747823521419,-3415.98,0.00034246,5]
[361814951,1747823521431,-420.0,0.00034246,5]
[361814952,1747823521442,-420.0,0.00034246,5]
[361814953,1747823521453,-163.05350515,0.00034246,5]
[361814954,1747823521463,-475.97,0.00034246,5]
[361814955,1747823521474,-263.14679586,0.00034246,5]
[361814956,1747823521484,-420.0,0.00034246,5]
[361814957,1747823521494,-1441.04,0.00034246,5]
[361814958,1747823521504,-1360.17,0.00034246,5]
[361814959,1747823521515,-799.95,0.00034246,5]
[361814960,1747823521525,-2905.57,0.00034246,5]
[361814961,1747823521535,-420.0,0.00034246,5]
[361814962,1747823521546,-1022.16,0.00034246,5]
[361814963,1747823521556,-420.0,0.00034246,5]
[361814964,1747823521568,-420.0,0.00034246,5]
[361814965,1747823521578,-2154.53,0.00034246,5]
[361814966,1747823521588,-420.0,0.00034246,5]
[361814967,1747823521598,-1412.77,0.00034246,5]
[361814968,1747823521608,-1804.92,0.00034246,5]
[361814969,1747823521619,-931.82,0.00034246,5]
[361814970,1747823521629,-3820.81,0.00034246,5]
[361814971,1747823521639,-420.0,0.00034246,5]
[361814972,1747823521649,-420.0,0.00034246,5]
[361814973,1747823521659,-420.0,0.00034246,5]
[361814974,1747823521669,-446.52,0.00034246,5]
[361814975,1747823521679,-3379.22,0.00034246,5]
[361814976,1747823521689,-420.0,0.00034246,5]
[361814977,1747823521699,-552.29,0.00034246,5]
[361814978,1747823521709,-2204.62,0.00034246,5]
[361814979,1747823521719,-1365.61,0.00034246,5]
[361814980,1747823521730,-739.98,0.00034246,5]
[361814981,1747823521740,-1686.16,0.00034246,5]
[361814982,1747823521750,-638.15,0.00034246,5]
[361814983,1747823521761,-2851.0,0.00034246,5]
[361814984,1747823521771,-420.0,0.00034246,5]
[361814985,1747823521781,-420.0,0.00034246,5]
[361814986,1747823521791,-420.0,0.00034246,5]
[361814987,1747823521802,-669.03,0.00034246,5]
[361814988,1747823521813,-641.93,0.00034246,5]
[361814989,1747823521823,-1513.514558,0.00034246,5]
[361814990,1747823521833,-1056.24,0.00034246,5]
[361814991,1747823521842,-605.2,0.00034246,5]
[361814992,1747823521852,-420.0,0.00034246,5]
[361814993,1747823521862,-506.05754888,0.00034246,5]
[361814994,1747823521872,-3414.72,0.00034246,5]
[361814995,1747823521882,-420.0,0.00034246,5]
[361814996,1747823521892,-456.44,0.00034246,5]
[361814997,1747823521902,-420.0,0.00034246,5]
[361814998,1747823521911,-2738.58,0.00034246,5]
[361814999,1747823521922,-626.72,0.00034246,5]
[361815000,1747823521932,-1961.22,0.00034246,5]
[361815001,1747823521942,-4019.16,0.00034246,5]
[361815002,1747823521953,-464.6600288,0.00034246,5]
[361815003,1747823521963,-420.0,0.00034246,5]
[361815004,1747823521973,-420.0,0.00034246,5]
[361815005,1747823521984,-420.0,0.00034246,5]
[361815006,1747823521994,-437.02,0.00034246,5]
[361815007,1747823522005,-501.19,0.00034246,5]
[361815008,1747823522015,-420.0,0.00034246,5]
[361815009,1747823522025,-420.0,0.00034246,5]
[361815010,1747823522035,-3829.73,0.00034246,5]
[361815011,1747823522045,-1195.86,0.00034246,5]
[361815012,1747823522056,-1171.35,0.00034246,5]
[361815013,1747823522066,-1602.68,0.00034246,5]
[361815014,1747823522076,-1595.56,0.00034246,5]
[361815015,1747823522085,-172.67382309,0.00034246,5]
[361815016,1747823522095,-1403.63,0.00034246,5]
[361815017,1747823522106,-420.0,0.00034246,5]
[361815018,1747823522117,-1620.22,0.00034246,5]
[361815019,1747823522127,-2127.07,0.00034246,5]
[361815020,1747823522137,-975.42,0.00034246,5]
[361815021,1747823522147,-420.0,0.00034246,5]
[361815022,1747823522157,-1651.18,0.00034246,5]
[361815023,1747823522167,-663.27,0.00034246,5]
[361815024,1747823522176,-4718.07,0.00034246,5]
[361815025,1747823522186,-560.95,0.00034246,5]
[361815026,1747823522196,-701.41,0.00034246,5]
[361815027,1747823522206,-950.44,0.00034246,5]
[361815028,1747823522216,-420.0,0.00034246,5]
[361815029,1747823522226,-708.42,0.00034246,5]
[361815030,1747823522236,-3358.3,0.00034246,5]
[361815031,1747823522246,-420.0,0.00034246,5]
[361815032,1747823522256,-1131.94,0.00034246,5]
[361815033,1747823522266,-3071.77,0.00034246,5]
[361815034,1747823522276,-1890.69,0.00034246,5]
[361815035,1747823522286,-2588.8,0.00034246,5]
[361815036,1747823522296,-420.0,0.00034246,5]
[361815037,1747823522306,-1081.97,0.00034246,5]
[361815038,1747823522317,-447.09,0.00034246,5]
[361815039,1747823522328,-1061.79,0.00034246,5]
[361815040,1747823522338,-3165.26,0.00034246,5]
[361815041,1747823522348,-1578.73,0.00034246,5]
[361815042,1747823522359,-420.0,0.00034246,5]
[361815043,1747823522374,-801.31,0.00034246,5]
[361815044,1747823522384,-437.54,0.00034246,5]
[361815045,1747823522395,-420.0,0.00034246,5]
[361815046,1747823522405,-1117.87,0.00034246,5]
[361815047,1747823522416,-590.41,0.00034246,5]
[361815048,1747823522426,-646.24,0.00034246,5]
[361815049,1747823522437,-469.33,0.00034246,5]
[361815050,1747823522451,-1582.05,0.00034246,5]
[361815051,1747823522462,-522.88120685,0.00034246,5]
[361815052,1747823522472,-420.0,0.00034246,5]
[361815053,1747823522482,-944.65,0.00034246,5]
[361815054,1747823522492,-1388.27,0.00034246,5]
[361815055,1747823522503,-420.0,0.00034246,5]
[361815056,1747823522513,-420.0,0.00034246,5]
[361815057,1747823522523,-817.62,0.00034246,5]
[361815058,1747823522534,-420.0,0.00034246,5]
[361815059,1747823522544,-1313.42,0.00034246,5]
[361815060,1747823522554,-2712.821305,0.00034246,5]
[361815061,1747823522565,-2499.18,0.00034246,5]
[361815062,1747823522575,-420.0,0.00034246,5]
[361815063,1747823522586,-591.99,0.00034246,5]
[361815064,1747823522597,-420.0,0.00034246,5]
[361815065,1747823522607,-420.0,0.00034246,5]
[361815066,1747823522616,-2676.06,0.00034246,5]
[361815067,1747823522627,-420.0,0.00034246,5]
[361815068,1747823522638,-420.0,0.00034246,5]
[361815069,1747823522648,-1630.17,0.00034246,5]
[361815070,1747823522658,-2046.62,0.00034246,5]
[361815071,1747823522669,-707.44,0.00034246,5]
[361815072,1747823522679,-420.0,0.00034246,5]
[361815073,1747823522690,-420.0,0.00034246,5]
[361815074,1747823522700,-460.0,0.00034246,5]
[361815075,1747823522710,-524.92,0.00034246,5]
[361815076,1747823522721,-844.05,0.00034246,5]
[361815077,1747823522731,-2122.24,0.00034246,5]
[361815078,1747823522741,-603.94,0.00034246,5]
[361815079,1747823522752,-5021.23,0.00034246,5]
[361815080,1747823522763,-1529.49,0.00034246,5]
[361815081,1747823522774,-1386.81,0.00034246,5]
[361815082,1747823522785,-1250.7,0.00034246,5]
[361815083,1747823522795,-420.0,0.00034246,5]
[361815084,1747823522805,-1682.48,0.00034246,5]
[361815085,1747823522816,-730.49,0.00034246,5]
[361815086,1747823522826,-420.0,0.00034246,5]
[361815087,1747823522836,-447.9,0.00034246,5]
[361815088,1747823522847,-420.0,0.00034246,5]
[361815089,1747823522857,-1324.88,0.00034246,5]
[361815090,1747823522867,-2229.66,0.00034246,5]
[361815091,1747823522877,-472.1,0.00034246,5]
[361815092,1747823522888,-420.0,0.00034246,5]
[361815093,1747823522899,-434.93,0.00034246,5]
[361815094,1747823522909,-420.0,0.00034246,5]
[361815095,1747823522919,-1282.33,0.00034246,5]
[361815096,1747823522929,-420.0,0.00034246,5]
[361815097,1747823522939,-444.34,0.00034246,5]
[361815098,1747823522950,-2643.47,0.00034246,5]
[361815099,1747823522960,-420.0,0.00034246,5]
[361815100,1747823522971,-420.0,0.00034246,5]
[361815101,1747823522981,-1343.09,0.00034246,5]
[361815102,1747823522991,-600.65,0.00034246,5]
[361815103,1747823523001,-1076.93,0.00034246,5]
[361815104,1747823523011,-420.0,0.00034246,5]
[361815105,1747823523021,-1416.84,0.00034246,5]
[361815106,1747823523031,-1332.5,0.00034246,5]
[361815107,1747823523041,-1392.97,0.00034246,5]
[361815108,1747823523052,-682.19,0.00034246,5]
[361815109,1747823523063,-347.69544485,0.00034246,5]
[361815110,1747823523073,-438.34,0.00034246,5]
[361815111,1747823523083,-420.0,0.00034246,5]
[361815112,1747823523094,-791.4,0.00034246,5]
[361815113,1747823523104,-1000.0,0.00034246,30]
[361815114,1747823523114,-632.83,0.00034246,5]
[361815115,1747823523124,-420.0,0.00034246,5]
[361815116,1747823523134,-420.0,0.00034246,5]
[361815117,1747823523144,-713.78,0.00034246,5]
[361815118,1747823523154,-2568.63,0.00034246,5]
[361815119,1747823523164,-420.0,0.00034246,5]
[361815120,1747823523174,-420.0,0.00034246,5]
[361815121,1747823523184,-1222.57,0.00034246,5]
[361815122,1747823523312,-420.0,0.00034246,5]
[361815123,1747823523324,-420.0,0.00034246,5]
[361815124,1747823523334,-1185.11,0.00034246,5]
[361815125,1747823523345,-420.0,0.00034246,5]
[361815126,1747823523355,-3400.95,0.00034246,5]
[361815127,1747823523368,-618.99,0.00034246,5]
[361815128,1747823523380,-559.3,0.00034246,5]
[361815129,1747823523390,-2592.87,0.00034246,5]
[361815130,1747823523401,-529.09249817,0.00034246,5]
[361815131,1747823523412,-729.48,0.00034246,5]
[361815132,1747823523421,-1036.77,0.00034246,5]
[361815133,1747823523432,-420.0,0.00034246,5]
[361815134,1747823523443,-912.69,0.00034246,5]
[361815135,1747823523453,-2077.17,0.00034246,5]
[361815136,1747823523463,-474.23,0.00034246,5]
[361815137,1747823523473,-633.02,0.00034246,5]
[361815138,1747823523483,-2143.32,0.00034246,5]
[361815139,1747823523493,-420.0,0.00034246,5]
[361815140,1747823523503,-2433.64,0.00034246,5]
[361815141,1747823523512,-2156.45,0.00034246,5]
[361815142,1747823523522,-680.33,0.00034246,5]
[361815143,1747823523532,-1587.63,0.00034246,5]
[361815144,1747823523543,-420.0,0.00034246,5]
[361815145,1747823523553,-3338.68,0.00034246,5]
[361815146,1747823523563,-420.0,0.00034246,5]
[361815147,1747823523574,-2132.67,0.00034246,5]
[361815148,1747823523583,-539.66,0.00034246,5]
[361815149,1747823523593,-1108.21,0.00034246,5]
[361815150,1747823523604,-420.0,0.00034246,5]
[361815151,1747823523614,-1448.56,0.00034246,5]
[361815152,1747823523624,-420.0,0.00034246,5]
[361815153,1747823523634,-1231.09,0.00034246,5]
[361815154,1747823523644,-1449.81,0.00034246,5]
[361815155,1747823523655,-420.0,0.00034246,5]
[361815156,1747823523665,-2507.82,0.00034246,5]
[361815157,1747823523677,-461.55,0.00034246,5]
[361815158,1747823523687,-420.0,0.00034246,5]
[361815159,1747823523698,-2269.59,0.00034246,5]
[361815160,1747823523709,-3289.43,0.00034246,5]
[361815161,1747823523719,-1017.25,0.00034246,5]
[361815162,1747823523730,-420.0,0.00034246,5]
[361815163,1747823523742,-1196.46,0.00034246,5]
[361815164,1747823523754,-420.0,0.00034246,5]
[361815165,1747823523765,-1902.38,0.00034246,5]
[361815166,1747823523777,-4528.11,0.00034246,5]
[361815167,1747823523788,-437.58,0.00034246,5]
[361815168,1747823523799,-2709.01,0.00034246,5]
[361815169,1747823523811,-934.68,0.00034246,5]
[361815170,1747823523822,-644.31,0.00034246,5]
[361815171,1747823523832,-3000.52,0.00034246,5]
[361815172,1747823523843,-420.0,0.00034246,5]
[361815173,1747823523854,-919.21,0.00034246,5]
[361815174,1747823523864,-2558.61,0.00034246,5]
[361815175,1747823523875,-420.0,0.00034246,5]
[361815176,1747823523884,-420.0,0.00034246,5]
[361815177,1747823523895,-3800.75,0.00034246,5]
[361815178,1747823523905,-1016.83,0.00034246,5]
[361815179,1747823523915,-420.0,0.00034246,5]
[361815180,1747823523926,-420.0,0.00034246,5]
[361815181,1747823523937,-420.0,0.00034246,5]
[361815182,1747823523948,-1283.86,0.00034246,5]
[361815183,1747823523958,-5012.54,0.00034246,5]
[361815184,1747823523968,-203.25108111,0.00034246,5]
[361815185,1747823523979,-4257.36,0.00034246,5]
[361815186,1747823523991,-420.0,0.00034246,5]
[361815187,1747823524002,-420.0,0.00034246,5]
[361815188,1747823524012,-2661.46,0.00034246,5]
[361815189,1747823524022,-420.0,0.00034246,5]
[361815190,1747823524032,-450.96962669,0.00034246,5]
[361815191,1747823524042,-420.0,0.00034246,5]
[361815192,1747823524052,-7175.57,0.00034246,5]
[361815193,1747823524062,-420.0,0.00034246,5]
[361815194,1747823524072,-1626.84,0.00034246,5]
[361815195,1747823524082,-420.0,0.00034246,5]
[361815196,1747823524093,-7478.95,0.00034246,5]
[361815197,1747823524103,-1297.42,0.00034246,5]
[361815198,1747823524113,-1050.66,0.00034246,5]
[361815199,1747823524123,-420.0,0.00034246,5]
[361815200,1747823524133,-459.54,0.00034246,5]
[361815201,1747823524143,-3186.22,0.00034246,5]
[361815202,1747823524153,-1603.59,0.00034246,5]
[361815203,1747823524163,-420.0,0.00034246,5]
[361815204,1747823524174,-1706.72,0.00034246,5]
[361815205,1747823524184,-1118.07,0.00034246,5]
[361815206,1747823524194,-1819.17,0.00034246,5]
[361815207,1747823524205,-3456.53,0.00034246,5]
[361815208,1747823524216,-477.62,0.00034246,5]
[361815209,1747823524226,-500.47,0.00034246,5]
[361815210,1747823524236,-1245.18,0.00034246,5]
[361815211,1747823524246,-485.82,0.00034246,5]
[361815212,1747823524256,-864.67,0.00034246,5]
[361815213,1747823524267,-1044.28,0.00034246,5]
[361815214,1747823524278,-483.53,0.00034246,5]
[361815215,1747823524288,-2279.99,0.00034246,5]
[361815216,1747823524298,-315.50661999,0.00034246,5]
[361815217,1747823524309,-254.2675,0.00034246,2]
[361815218,1747823524320,-420.0,0.00034246,5]
[361815219,1747823524330,-1093.42,0.00034246,5]
[361815220,1747823524339,-773.61,0.00034246,5]
[361815221,1747823524350,-1587.6,0.00034246,5]
[361815222,1747823524360,-2000.0,0.00034246,5]
[361815223,1747823524373,-478.74,0.00034246,5]
[361815224,1747823524384,-3023.35,0.00034246,5]
[361815225,1747823524394,-2681.61,0.00034246,5]
[361815226,1747823524405,-420.0,0.00034246,5]
[361815227,1747823524415,-3921.51,0.00034246,5]
[361815228,1747823524425,-420.0,0.00034246,5]
[361815229,1747823524435,-774.74,0.00034246,5]
[361815230,1747823524447,-420.0,0.00034246,5]
[361815231,1747823524457,-11832.32,0.00034246,5]
[361815232,1747823524467,-1140.49,0.00034246,5]
[361815233,1747823524478,-716.85,0.00034246,5]
[361815234,1747823524488,-1451.14,0.00034246,5]
[361815235,1747823524498,-4169.63,0.00034246,5]
[361815236,1747823524508,-1980.16,0.00034246,5]
[361815237,1747823524517,-614.3,0.00034246,5]
[361815238,1747823524527,-1064.83,0.00034246,5]
[361815239,1747823524538,-1031.8,0.00034246,5]
[361815240,1747823524547,-2328.19,0.00034246,5]
[361815241,1747823524557,-420.0,0.00034246,5]
[361815242,1747823524567,-2178.09,0.00034246,5]
[361815243,1747823524576,-595.22,0.00034246,5]
[361815244,1747823524586,-420.0,0.00034246,5]
[361815245,1747823524596,-12779.36,0.00034246,5]
[361815246,1747823524606,-3199.69,0.00034246,5]
[361815247,1747823524616,-464.93,0.00034246,5]
[361815248,1747823524625,-1385.93,0.00034246,5]
[361815249,1747823524635,-3624.48,0.00034246,5]
[361815250,1747823524644,-1592.89,0.00034246,5]
[361815251,1747823524654,-420.0,0.00034246,5]
[361815252,1747823524663,-420.0,0.00034246,5]
[361815253,1747823524673,-3239.25,0.00034246,5]
[361815254,1747823524683,-420.0,0.00034246,5]
[361815255,1747823524692,-4626.37,0.00034246,5]
[361815256,1747823524702,-420.0,0.00034246,5]
[361815257,1747823524712,-613.45,0.00034246,5]
[361815258,1747823524722,-1377.38,0.00034246,5]
[361815259,1747823524732,-2100.46,0.00034246,5]
[361815260,1747823524742,-232873.01,0.00034246,5]
[361815261,1747823524752,-420.0,0.00034246,5]
[361815262,1747823524762,-420.0,0.00034246,5]
[361815263,1747823524772,-2870.6,0.00034246,5]
[361815264,1747823524782,-420.0,0.00034246,5]
[361815265,1747823524792,-420.0,0.00034246,5]
[361815266,1747823524802,-544.44,0.00034246,5]
[361815267,1747823524812,-2582.79,0.00034246,5]
[361815268,1747823524823,-1455.85,0.00034246,5]
[361815269,1747823524832,-3817.8,0.00034246,5]
[361815270,1747823524842,-1140.2,0.00034246,5]
[361815271,1747823524852,-1001.8,0.00034246,5]
[361815272,1747823524861,-814.19,0.00034246,5]
[361815273,1747823524871,-24741.12,0.00034246,5]
[361815274,1747823524881,-746.18,0.00034246,5]
[361815275,1747823524891,-1332.61,0.00034246,5]
[361815276,1747823524900,-847.4,0.00034246,5]
[361815277,1747823524910,-6653.58,0.00034246,5]
[361815278,1747823524919,-2208.36,0.00034246,5]
[361815279,1747823524929,-420.0,0.00034246,5]
[361815280,1747823524939,-3466.92,0.00034246,5]
[361815281,1747823524948,-756.27,0.00034246,5]
[361815282,1747823524958,-2780.98,0.00034246,5]
[361815283,1747823524968,-4377.12,0.00034246,5]
[361815284,1747823524978,-3727.2,0.00034246,5]
[361815285,1747823524988,-43430.9,0.00034246,5]
[361815286,1747823524997,-420.0,0.00034246,5]
[361815287,1747823525007,-1355.36,0.00034246,5]
[361815288,1747823525016,-662.42,0.00034246,5]
[361815289,1747823525026,-1646.2,0.00034246,5]
[361815290,1747823525036,-420.0,0.00034246,5]
[361815291,1747823525046,-692.1,0.00034246,5]
[361815292,1747823525056,-3823.68,0.00034246,5]
[361815293,1747823525066,-420.0,0.00034246,5]
[361815294,1747823525075,-1950.11,0.00034246,5]
[361815295,1747823525085,-420.0,0.00034246,5]
[361815296,1747823525095,-1929.18,0.00034246,5]
[361815297,1747823525105,-1375.19,0.00034246,5]
[361815298,1747823525116,-694.13,0.00034246,5]
[361815299,1747823525125,-27430.46,0.00034246,5]
[361815300,1747823525135,-2620.97,0.00034246,5]
[361815301,1747823525144,-420.0,0.00034246,5]
[361815302,1747823525154,-1035.87,0.00034246,5]
[361815303,1747823525163,-3873.45,0.00034246,5]
[361815304,1747823525173,-8392.23,0.00034246,5]
[361815305,1747823525183,-420.0,0.00034246,5]
[361815306,1747823525193,-831.34,0.00034246,5]
[361815307,1747823525204,-683.8,0.00034246,5]
[361815308,1747823525215,-420.0,0.00034246,5]
[361815309,1747823525226,-648.18,0.00034246,5]
[361815310,1747823525236,-382.46229094,0.00034246,5]
[361815311,1747823525247,-333.94,0.00034246,5]
[361815312,1747823525259,-420.0,0.00034246,5]
[361815313,1747823525269,-2236.59,0.00034246,5]
[361815314,1747823525279,-862.9,0.00034246,5]
[361815315,1747823525289,-2431.99,0.00034246,5]
[361815316,1747823525298,-2055.72,0.00034246,5]
[361815317,1747823525308,-30819.65,0.00034246,5]
[361815318,1747823525319,-426.36,0.00034246,5]
[361815319,1747823525328,-3529.5,0.00034246,5]
[361815320,1747823525338,-420.0,0.00034246,5]
[361815321,1747823525347,-420.0,0.00034246,5]
[361815322,1747823525357,-420.0,0.00034246,5]
[361815323,1747823525370,-507.94,0.00034246,5]
[361815324,1747823525379,-7158.91,0.00034246,5]
[361815325,1747823525389,-1372.96,0.00034246,5]
[361815326,1747823525399,-11263.62,0.00034246,5]
[361815327,1747823525410,-1395.97,0.00034246,5]
[361815328,1747823525419,-10218.82,0.00034246,5]
[361815329,1747823525429,-420.0,0.00034246,5]
[361815330,1747823525441,-11955.57,0.00034246,5]
[361815331,1747823525451,-420.0,0.00034246,5]
[361815332,1747823525461,-903.34,0.00034246,5]
[361815333,1747823525470,-4237.43,0.00034246,5]
[361815334,1747823525479,-1156.02,0.00034246,5]
[361815335,1747823525489,-1250.1,0.00034246,5]
[361815336,1747823525499,-420.0,0.00034246,5]
[361815337,1747823525509,-1940.56,0.00034246,5]
[361815338,1747823525518,-1535.0,0.00034246,5]
[361815339,1747823525528,-2611.65,0.00034246,5]
[361815340,1747823525538,-2088.87,0.00034246,5]
[361815341,1747823525549,-420.0,0.00034246,5]
[361815342,1747823525560,-604.9,0.00034246,5]
[361815343,1747823525570,-436.47,0.00034246,5]
[361815344,1747823525580,-512.59,0.00034246,5]
[361815345,1747823525589,-3994.4,0.00034246,5]
[361815346,1747823525601,-4967.59,0.00034246,5]
[361815347,1747823525611,-420.0,0.00034246,5]
[361815348,1747823525621,-420.0,0.00034246,5]
[361815349,1747823525632,-997.3,0.00034246,5]
[361815350,1747823525643,-420.0,0.00034246,5]
[361815351,1747823525652,-6358.26,0.00034246,5]
[361815352,1747823525662,-2461.55,0.00034246,5]
[361815353,1747823525672,-3960.15,0.00034246,5]
[361815354,1747823525682,-420.0,0.00034246,5]
[361815355,1747823525691,-2650.09,0.00034246,5]
[361815356,1747823525701,-1029.17,0.00034246,5]
[361815357,1747823525711,-655.48,0.00034246,5]
[361815358,1747823525721,-2763.51,0.00034246,5]
[361815359,1747823525730,-3823.46,0.00034246,5]
[361815360,1747823525740,-420.0,0.00034246,5]
[361815361,1747823525750,-420.0,0.00034246,5]
[361815362,1747823525760,-420.0,0.00034246,5]
[361815363,1747823525770,-420.0,0.00034246,5]
[361815364,1747823525780,-2138.94,0.00034246,5]
[361815365,1747823525790,-3514.65,0.00034246,5]
[361815366,1747823525800,-420.0,0.00034246,5]
[361815367,1747823525811,-578.47,0.00034246,5]
[361815368,1747823525821,-1778.66,0.00034246,5]
[361815369,1747823525832,-420.0,0.00034246,5]
[361815370,1747823525842,-4923.96,0.00034246,5]
[361815371,1747823525851,-7467.95,0.00034246,5]
[361815372,1747823525862,-420.87,0.00034246,5]
[361815373,1747823525872,-420.0,0.00034246,5]